[Event "Titled Tuesday Blitz July 11 Late 2023"]
[White "Hartikainen, Jarmo"]
[Black "deloewre"]
[WhiteFideId "503134"]
[WhiteElo "2096"]
[BlackElo "2113"]
[Result "1-0"]
[Round "7"]
[TimeControl "180+2"]
[Date "2023.07.11"]
[WhiteClock "0:00:05"]
[BlackClock "0:00:49"]
[Board "151"]

1. e4 {[%clk 0:03:00]}  c5 {[%clk 0:02:57]} 2. c3 {[%clk 0:03:00]}  d5 {[%clk 0:02:56]} 3. exd5 {[%clk 0:02:59]}  Qxd5 {[%clk 0:02:54]} 4. d4 {[%clk 0:02:59]}  Nc6 {[%clk 0:02:52]} 5. Nf3 {[%clk 0:02:59]}  Bg4 {[%clk 0:02:52]} 6. Be2 {[%clk 0:02:57]}  cxd4 {[%clk 0:02:49]} 7. cxd4 {[%clk 0:02:52]}  e6 {[%clk 0:02:48]} 8. Nc3 {[%clk 0:02:47]}  Qa5 {[%clk 0:02:46]} 9. O-O {[%clk 0:02:44]}  Nf6 {[%clk 0:02:44]} 10. a3 {[%clk 0:02:40]}  Be7 {[%clk 0:02:42]} 11. Be3 {[%clk 0:02:20]}  O-O {[%clk 0:02:40]} 12. b4 {[%clk 0:02:18]}  Qd8 {[%clk 0:02:38]} 13. Rc1 {[%clk 0:02:15]}  Rc8 {[%clk 0:02:35]} 14. h3 {[%clk 0:01:42]}  Bh5 {[%clk 0:02:33]} 15. Qd2 {[%clk 0:01:13]}  Nd5 {[%clk 0:02:24]} 16. Nxd5 {[%clk 0:00:50]}  exd5 {[%clk 0:02:11]} 17. Ne5 {[%clk 0:00:39]}  Bxe2 {[%clk 0:02:08]} 18. Qxe2 {[%clk 0:00:36]}  a5 {[%clk 0:02:06]} 19. b5 {[%clk 0:00:28]}  Nxe5 {[%clk 0:02:03]} 20. dxe5 {[%clk 0:00:29]}  Bxa3 {[%clk 0:02:00]} 21. Rxc8 {[%clk 0:00:27]}  Qxc8 {[%clk 0:01:58]} 22. Qd3 {[%clk 0:00:27]}  Bb4 {[%clk 0:01:42]} 23. Qxd5 {[%clk 0:00:26]}  Rd8 {[%clk 0:01:40]} 24. Qb3 {[%clk 0:00:20]}  Qe6 {[%clk 0:01:32]} 25. Qxe6 {[%clk 0:00:14]}  fxe6 {[%clk 0:01:31]} 26. Rc1 {[%clk 0:00:12]}  Rd7 {[%clk 0:01:23]} 27. Rc4 {[%clk 0:00:09]}  Kf7 {[%clk 0:01:20]} 28. g3 {[%clk 0:00:07]}  Kg6 {[%clk 0:01:17]} 29. Kg2 {[%clk 0:00:07]}  Kf5 {[%clk 0:01:15]} 30. f4 {[%clk 0:00:06]}  h5 {[%clk 0:01:13]} 31. Kf3 {[%clk 0:00:05]}  Rd3 {[%clk 0:01:06]} 32. g4+ {[%clk 0:00:05]}  hxg4+ {[%clk 0:01:06]} 33. hxg4+ {[%clk 0:00:06]}  Kg6 {[%clk 0:01:05]} 34. Ke4 {[%clk 0:00:07]}  Rd5 {[%clk 0:00:59]} 35. Rc7 {[%clk 0:00:06]}  Rxb5 {[%clk 0:00:58]} 36. f5+ {[%clk 0:00:07]}  exf5+ {[%clk 0:00:57]} 37. gxf5+ {[%clk 0:00:08]}  Kh5 {[%clk 0:00:53]} 38. Rxg7 {[%clk 0:00:07]}  a4 {[%clk 0:00:51]} 39. Kf3 {[%clk 0:00:05]}  Rxe5 {[%clk 0:00:49]} 40. Rh7# {[%clk 0:00:05]} 1-0


[Site "https://www.chess.com"]

[Event "Titled Tuesday Blitz July 11 Late 2023"]
[White "Carlsen, Magnus"]
[Black "Sarana, Alexey"]
[WhiteFideId "1503014"]
[BlackFideId "24133795"]
[WhiteElo "3277"]
[BlackElo "3065"]
[Result "1-0"]
[Round "8"]
[TimeControl "180+2"]
[Date "2023.07.11"]
[WhiteClock "0:00:08"]
[BlackClock "0:00:02"]
[Board "2"]

1. c4 {[%clk 0:03:00]}  e5 {[%clk 0:03:00]} 2. Nc3 {[%clk 0:02:59]}  Nf6 {[%clk 0:03:00]} 3. Nf3 {[%clk 0:02:59]}  Nc6 {[%clk 0:03:01]} 4. g3 {[%clk 0:02:59]}  Bb4 {[%clk 0:03:00]} 5. Nd5 {[%clk 0:02:57]}  Bc5 {[%clk 0:02:59]} 6. Bg2 {[%clk 0:02:55]}  d6 {[%clk 0:02:59]} 7. e3 {[%clk 0:02:52]}  O-O {[%clk 0:02:57]} 8. O-O {[%clk 0:02:51]}  Re8 {[%clk 0:02:56]} 9. b3 {[%clk 0:02:49]}  a5 {[%clk 0:02:55]} 10. Bb2 {[%clk 0:02:48]}  Bg4 {[%clk 0:02:52]} 11. h3 {[%clk 0:02:46]}  Bh5 {[%clk 0:02:53]} 12. Nxf6+ {[%clk 0:02:11]}  Qxf6 {[%clk 0:02:52]} 13. a3 {[%clk 0:02:11]}  Bb6 {[%clk 0:02:44]} 14. d3 {[%clk 0:02:11]}  Rad8 {[%clk 0:02:40]} 15. Qe2 {[%clk 0:02:07]}  h6 {[%clk 0:02:34]} 16. Rfd1 {[%clk 0:02:04]}  Nd4 {[%clk 0:02:12]} 17. Bxd4 {[%clk 0:01:54]}  Bxd4 {[%clk 0:02:10]} 18. Rab1 {[%clk 0:01:54]}  Ba7 {[%clk 0:02:04]} 19. b4 {[%clk 0:01:53]}  axb4 {[%clk 0:02:03]} 20. axb4 {[%clk 0:01:54]}  c6 {[%clk 0:02:02]} 21. b5 {[%clk 0:01:54]}  d5 {[%clk 0:02:01]} 22. g4 {[%clk 0:01:50]}  Bg6 {[%clk 0:01:51]} 23. bxc6 {[%clk 0:01:48]}  bxc6 {[%clk 0:01:24]} 24. cxd5 {[%clk 0:01:48]}  cxd5 {[%clk 0:01:25]} 25. Qa2 {[%clk 0:01:47]}  Bc5 {[%clk 0:01:15]} 26. Rb5 {[%clk 0:01:43]}  Qc6 {[%clk 0:00:56]} 27. Qa5 {[%clk 0:01:42]}  Bf8 {[%clk 0:00:47]} 28. d4 {[%clk 0:00:58]}  Ra8 {[%clk 0:00:44]} 29. Qb6 {[%clk 0:00:58]}  Qc2 {[%clk 0:00:39]} 30. Rf1 {[%clk 0:00:59]}  Reb8 {[%clk 0:00:18]} 31. Qxb8 {[%clk 0:00:58]}  Rxb8 {[%clk 0:00:19]} 32. Rxb8 {[%clk 0:00:59]}  exd4 {[%clk 0:00:19]} 33. Nxd4 {[%clk 0:00:57]}  Qc7 {[%clk 0:00:20]} 34. Ra8 {[%clk 0:00:56]}  Qc5 {[%clk 0:00:18]} 35. Rfa1 {[%clk 0:00:52]}  Kh7 {[%clk 0:00:17]} 36. R8a5 {[%clk 0:00:43]}  Qc3 {[%clk 0:00:17]} 37. Bxd5 {[%clk 0:00:41]}  Bc5 {[%clk 0:00:17]} 38. Ne2 {[%clk 0:00:39]}  Qb2 {[%clk 0:00:10]} 39. Nf4 {[%clk 0:00:38]}  Bb1 {[%clk 0:00:05]} 40. Bxf7 {[%clk 0:00:26]}  Bd6 {[%clk 0:00:06]} 41. Bc4 {[%clk 0:00:22]}  Bxf4 {[%clk 0:00:05]} 42. exf4 {[%clk 0:00:20]}  Qc1+ {[%clk 0:00:06]} 43. Bf1 {[%clk 0:00:20]}  Qb2 {[%clk 0:00:05]} 44. R1a3 {[%clk 0:00:19]}  Be4 {[%clk 0:00:04]} 45. Re3 {[%clk 0:00:18]}  Qd4 {[%clk 0:00:04]} 46. Re5 {[%clk 0:00:16]}  Bb1 {[%clk 0:00:03]} 47. f5 {[%clk 0:00:16]}  Qf4 {[%clk 0:00:04]} 48. Re7 {[%clk 0:00:15]}  Kh8 {[%clk 0:00:03]} 49. Rb7 {[%clk 0:00:14]}  h5 {[%clk 0:00:03]} 50. Rxb1 {[%clk 0:00:13]}  hxg4 {[%clk 0:00:03]} 51. hxg4 {[%clk 0:00:12]}  Qxg4+ {[%clk 0:00:04]} 52. Rg3 {[%clk 0:00:13]}  Qf4 {[%clk 0:00:02]} 53. Rb7 {[%clk 0:00:12]}  Kg8 {[%clk 0:00:01]} 54. Rgxg7+ {[%clk 0:00:11]}  Kh8 {[%clk 0:00:02]} 55. Rh7+ {[%clk 0:00:12]}  Kg8 {[%clk 0:00:02]} 56. Rbg7+ {[%clk 0:00:09]}  Kf8 {[%clk 0:00:03]} 57. Rg3 {[%clk 0:00:09]}  Ke8 {[%clk 0:00:02]} 58. Rg8# {[%clk 0:00:08]} 1-0


[Site "https://www.chess.com"]

[Event "Titled Tuesday Blitz July 11 Late 2023"]
[White "Moroni, Luca Jr"]
[Black "Martinez Alcantara, Jose Eduardo"]
[WhiteFideId "865834"]
[BlackFideId "3805662"]
[WhiteElo "2862"]
[BlackElo "3022"]
[Result "1/2-1/2"]
[Round "8"]
[TimeControl "180+2"]
[Date "2023.07.11"]
[WhiteClock "0:00:22"]
[BlackClock "0:00:15"]
[Board "5"]

1. c4 {[%clk 0:03:00]}  c5 {[%clk 0:02:57]} 2. g3 {[%clk 0:03:00]}  Nc6 {[%clk 0:02:57]} 3. Bg2 {[%clk 0:03:00]}  g6 {[%clk 0:02:58]} 4. Nc3 {[%clk 0:03:00]}  Bg7 {[%clk 0:02:58]} 5. d3 {[%clk 0:03:00]}  d6 {[%clk 0:02:59]} 6. Qd2 {[%clk 0:02:59]}  Nh6 {[%clk 0:02:57]} 7. b3 {[%clk 0:02:58]}  Nf5 {[%clk 0:02:55]} 8. Bb2 {[%clk 0:02:58]}  e5 {[%clk 0:02:50]} 9. e3 {[%clk 0:02:49]}  O-O {[%clk 0:02:41]} 10. Nge2 {[%clk 0:02:48]}  Rb8 {[%clk 0:02:39]} 11. Nd5 {[%clk 0:02:46]}  Nfe7 {[%clk 0:02:29]} 12. O-O {[%clk 0:02:37]}  b5 {[%clk 0:02:14]} 13. cxb5 {[%clk 0:02:29]}  Rxb5 {[%clk 0:02:11]} 14. Nxe7+ {[%clk 0:02:30]}  Nxe7 {[%clk 0:02:11]} 15. d4 {[%clk 0:02:31]}  cxd4 {[%clk 0:02:10]} 16. exd4 {[%clk 0:02:32]}  Nf5 {[%clk 0:02:01]} 17. Rfd1 {[%clk 0:02:21]}  Qa5 {[%clk 0:01:37]} 18. Nc3 {[%clk 0:02:13]}  Rb8 {[%clk 0:01:37]} 19. dxe5 {[%clk 0:02:04]}  dxe5 {[%clk 0:01:38]} 20. Nd5 {[%clk 0:02:02]}  Qxd2 {[%clk 0:01:38]} 21. Rxd2 {[%clk 0:02:02]}  Bb7 {[%clk 0:01:26]} 22. Rc1 {[%clk 0:02:02]}  Kh8 {[%clk 0:01:10]} 23. h4 {[%clk 0:01:42]}  Nd4 {[%clk 0:01:09]} 24. Bxd4 {[%clk 0:01:29]}  exd4 {[%clk 0:01:10]} 25. Nf4 {[%clk 0:01:27]}  Rbc8 {[%clk 0:00:52]} 26. Rxc8 {[%clk 0:01:24]}  Bxc8 {[%clk 0:00:53]} 27. Bh3 {[%clk 0:01:19]}  Bb7 {[%clk 0:00:48]} 28. Bg2 {[%clk 0:01:18]}  Bc8 {[%clk 0:00:48]} 29. Bh3 {[%clk 0:01:18]}  Bb7 {[%clk 0:00:38]} 30. Bg2 {[%clk 0:01:12]}  Ba6 {[%clk 0:00:36]} 31. Bf1 {[%clk 0:01:08]}  Bc8 {[%clk 0:00:36]} 32. Rc2 {[%clk 0:01:00]}  Be5 {[%clk 0:00:30]} 33. Bh3 {[%clk 0:00:45]}  Ba6 {[%clk 0:00:21]} 34. Bf1 {[%clk 0:00:41]}  Bc8 {[%clk 0:00:22]} 35. Bh3 {[%clk 0:00:30]}  Bb7 {[%clk 0:00:20]} 36. Bg2 {[%clk 0:00:30]}  Bc8 {[%clk 0:00:15]} 37. Bh3 {[%clk 0:00:22]} 1/2-1/2


[Site "https://www.chess.com"]

[Event "Titled Tuesday Blitz July 11 Late 2023"]
[White "Bortnyk, Mykola"]
[Black "Licznerski, Lukasz"]
[WhiteFideId "14120836"]
[BlackFideId "1179250"]
[WhiteElo "3005"]
[BlackElo "2825"]
[Result "1-0"]
[Round "8"]
[TimeControl "180+2"]
[Date "2023.07.11"]
[WhiteClock "0:00:05"]
[BlackClock "0:00:00"]
[Board "7"]

1. e4 {[%clk 0:03:00]}  c6 {[%clk 0:03:00]} 2. d4 {[%clk 0:02:59]}  d5 {[%clk 0:03:00]} 3. exd5 {[%clk 0:03:00]}  cxd5 {[%clk 0:03:01]} 4. c4 {[%clk 0:03:01]}  Nf6 {[%clk 0:03:01]} 5. Nc3 {[%clk 0:03:01]}  g6 {[%clk 0:03:02]} 6. Qb3 {[%clk 0:03:01]}  Bg7 {[%clk 0:03:02]} 7. cxd5 {[%clk 0:03:02]}  O-O {[%clk 0:03:02]} 8. Bd3 {[%clk 0:03:01]}  Nbd7 {[%clk 0:02:58]} 9. Bg5 {[%clk 0:03:01]}  Nb6 {[%clk 0:02:58]} 10. Bxf6 {[%clk 0:03:01]}  Bxf6 {[%clk 0:02:58]} 11. Nf3 {[%clk 0:03:01]}  a5 {[%clk 0:02:48]} 12. a4 {[%clk 0:02:57]}  Qd6 {[%clk 0:02:38]} 13. O-O {[%clk 0:02:54]}  Bg4 {[%clk 0:02:28]} 14. Ne5 {[%clk 0:02:53]}  Bc8 {[%clk 0:02:05]} 15. Rfe1 {[%clk 0:02:22]}  Qb4 {[%clk 0:02:04]} 16. Bc2 {[%clk 0:01:55]}  Qxd4 {[%clk 0:01:55]} 17. Re4 {[%clk 0:01:49]}  Qc5 {[%clk 0:01:53]} 18. Nd3 {[%clk 0:01:46]}  Qd6 {[%clk 0:01:51]} 19. Rd1 {[%clk 0:01:37]}  Bxc3 {[%clk 0:01:41]} 20. bxc3 {[%clk 0:01:32]}  Qxd5 {[%clk 0:01:39]} 21. Rxe7 {[%clk 0:01:29]}  Qd6 {[%clk 0:01:26]} 22. Rde1 {[%clk 0:01:19]}  Nd5 {[%clk 0:01:11]} 23. R7e5 {[%clk 0:01:11]}  Be6 {[%clk 0:01:11]} 24. Qb2 {[%clk 0:01:05]}  Rac8 {[%clk 0:01:04]} 25. Bb3 {[%clk 0:01:00]}  Nc7 {[%clk 0:00:30]} 26. Nc5 {[%clk 0:00:53]}  Bxb3 {[%clk 0:00:28]} 27. Qxb3 {[%clk 0:00:54]}  Qc6 {[%clk 0:00:15]} 28. Qxb7 {[%clk 0:00:48]}  Qxb7 {[%clk 0:00:08]} 29. Nxb7 {[%clk 0:00:49]}  Ne6 {[%clk 0:00:09]} 30. R1e3 {[%clk 0:00:36]}  Rc4 {[%clk 0:00:09]} 31. g3 {[%clk 0:00:30]}  Rb8 {[%clk 0:00:07]} 32. Nd6 {[%clk 0:00:28]}  Rxa4 {[%clk 0:00:06]} 33. Nxf7 {[%clk 0:00:29]}  Kxf7 {[%clk 0:00:04]} 34. Rxe6 {[%clk 0:00:30]}  Rb7 {[%clk 0:00:04]} 35. Ra6 {[%clk 0:00:28]}  Rc7 {[%clk 0:00:04]} 36. Rf3+ {[%clk 0:00:24]}  Kg7 {[%clk 0:00:04]} 37. h4 {[%clk 0:00:20]}  Ra3 {[%clk 0:00:04]} 38. h5 {[%clk 0:00:18]}  Raxc3 {[%clk 0:00:03]} 39. Rxc3 {[%clk 0:00:15]}  Rxc3 {[%clk 0:00:03]} 40. Rxa5 {[%clk 0:00:16]}  Kh6 {[%clk 0:00:03]} 41. Kg2 {[%clk 0:00:16]}  gxh5 {[%clk 0:00:02]} 42. Kh3 {[%clk 0:00:13]}  Rc4 {[%clk 0:00:02]} 43. f3 {[%clk 0:00:12]}  Rb4 {[%clk 0:00:02]} 44. Re5 {[%clk 0:00:12]}  Kg6 {[%clk 0:00:02]} 45. f4 {[%clk 0:00:12]}  Rb1 {[%clk 0:00:02]} 46. Re6+ {[%clk 0:00:10]}  Kg7 {[%clk 0:00:03]} 47. Kh4 {[%clk 0:00:09]}  Rh1+ {[%clk 0:00:03]} 48. Kg5 {[%clk 0:00:10]}  Rh3 {[%clk 0:00:03]} 49. Re7+ {[%clk 0:00:07]}  Kf8 {[%clk 0:00:02]} 50. Rxh7 {[%clk 0:00:07]}  Rxg3+ {[%clk 0:00:03]} 51. Kf6 {[%clk 0:00:08]}  Kg8 {[%clk 0:00:01]} 52. Rxh5 {[%clk 0:00:04]}  Ra3 {[%clk 0:00:02]} 53. Re5 {[%clk 0:00:04]}  Kf8 {[%clk 0:00:01]} 54. Re6 {[%clk 0:00:04]}  Ra4 {[%clk 0:00:00]} 55. f5 {[%clk 0:00:05]} 1-0


[Site "https://www.chess.com"]

[Event "Titled Tuesday Blitz July 11 Late 2023"]
[White "Dardha, Daniel"]
[Black "Oparin, Grigoriy"]
[WhiteFideId "240990"]
[BlackFideId "24125890"]
[WhiteElo "2875"]
[BlackElo "2984"]
[Result "0-1"]
[Round "8"]
[TimeControl "180+2"]
[Date "2023.07.11"]
[WhiteClock "0:00:24"]
[BlackClock "0:00:53"]
[Board "11"]

1. d4 {[%clk 0:03:00]}  Nf6 {[%clk 0:02:59]} 2. Bg5 {[%clk 0:03:01]}  d5 {[%clk 0:02:59]} 3. Nd2 {[%clk 0:02:58]}  c5 {[%clk 0:02:59]} 4. dxc5 {[%clk 0:02:58]}  e6 {[%clk 0:02:56]} 5. e4 {[%clk 0:02:58]}  Bxc5 {[%clk 0:02:55]} 6. Qe2 {[%clk 0:02:57]}  Nc6 {[%clk 0:02:45]} 7. O-O-O {[%clk 0:02:53]}  Be7 {[%clk 0:02:45]} 8. e5 {[%clk 0:02:44]}  Nd7 {[%clk 0:02:41]} 9. Bxe7 {[%clk 0:02:43]}  Qxe7 {[%clk 0:02:42]} 10. f4 {[%clk 0:02:44]}  O-O {[%clk 0:02:37]} 11. Ngf3 {[%clk 0:02:44]}  f6 {[%clk 0:02:37]} 12. exf6 {[%clk 0:02:35]}  Qxf6 {[%clk 0:02:35]} 13. g3 {[%clk 0:02:35]}  e5 {[%clk 0:02:34]} 14. Bh3 {[%clk 0:02:19]}  e4 {[%clk 0:02:23]} 15. Ng5 {[%clk 0:01:52]}  Nb6 {[%clk 0:02:23]} 16. Bxc8 {[%clk 0:01:44]}  Raxc8 {[%clk 0:02:23]} 17. c3 {[%clk 0:01:30]}  h6 {[%clk 0:02:22]} 18. Nh3 {[%clk 0:01:29]}  Nb4 {[%clk 0:02:07]} 19. Kb1 {[%clk 0:01:22]}  Nd3 {[%clk 0:02:05]} 20. Nb3 {[%clk 0:01:18]}  Nxb2 {[%clk 0:01:28]} 21. Kxb2 {[%clk 0:00:51]}  Na4+ {[%clk 0:01:28]} 22. Ka3 {[%clk 0:00:51]}  Nxc3 {[%clk 0:00:55]} 23. Qh5 {[%clk 0:00:24]}  Qa6+ {[%clk 0:00:53]} 0-1


[Site "https://www.chess.com"]

[Event "Titled Tuesday Blitz July 11 Late 2023"]
[White "Hong, Andrew"]
[Black "Jarovinsky, Alexey"]
[WhiteFideId "2099438"]
[BlackFideId "14115131"]
[WhiteElo "3065"]
[BlackElo "2720"]
[Result "1-0"]
[Round "8"]
[TimeControl "180+2"]
[Date "2023.07.11"]
[WhiteClock "0:00:44"]
[BlackClock "0:00:00"]
[Board "14"]

1. e4 {[%clk 0:03:00]}  Nc6 {[%clk 0:02:56]} 2. Nf3 {[%clk 0:03:00]}  d6 {[%clk 0:02:44]} 3. d4 {[%clk 0:02:59]}  Nf6 {[%clk 0:02:44]} 4. Nc3 {[%clk 0:02:57]}  Bg4 {[%clk 0:02:43]} 5. d5 {[%clk 0:02:54]}  Ne5 {[%clk 0:02:40]} 6. Be2 {[%clk 0:02:25]}  Nxf3+ {[%clk 0:02:37]} 7. Bxf3 {[%clk 0:02:25]}  Bxf3 {[%clk 0:02:36]} 8. Qxf3 {[%clk 0:02:25]}  g6 {[%clk 0:02:35]} 9. O-O {[%clk 0:02:16]}  Bg7 {[%clk 0:02:35]} 10. Rd1 {[%clk 0:02:15]}  O-O {[%clk 0:02:34]} 11. Bf4 {[%clk 0:02:14]}  e5 {[%clk 0:02:29]} 12. dxe6 {[%clk 0:02:06]}  fxe6 {[%clk 0:02:30]} 13. Qe2 {[%clk 0:02:06]}  Nh5 {[%clk 0:02:28]} 14. Be3 {[%clk 0:02:02]}  Nf4 {[%clk 0:02:26]} 15. Qg4 {[%clk 0:01:58]}  Bxc3 {[%clk 0:02:08]} 16. Bxf4 {[%clk 0:01:50]}  Bxb2 {[%clk 0:02:00]} 17. Qxe6+ {[%clk 0:01:48]}  Kg7 {[%clk 0:02:00]} 18. Rab1 {[%clk 0:01:43]}  Rxf4 {[%clk 0:01:36]} 19. Rxb2 {[%clk 0:01:42]}  Qh4 {[%clk 0:01:00]} 20. g3 {[%clk 0:01:37]}  Qh5 {[%clk 0:00:59]} 21. Rd5 {[%clk 0:01:26]}  Rf6 {[%clk 0:00:33]} 22. Qe7+ {[%clk 0:01:13]}  Rf7 {[%clk 0:00:32]} 23. Qxf7+ {[%clk 0:01:12]}  Kxf7 {[%clk 0:00:32]} 24. Rxh5 {[%clk 0:01:13]}  gxh5 {[%clk 0:00:33]} 25. Rxb7 {[%clk 0:01:14]}  Rc8 {[%clk 0:00:33]} 26. Rxa7 {[%clk 0:01:13]}  Ke6 {[%clk 0:00:33]} 27. Ra5 {[%clk 0:01:13]}  c5 {[%clk 0:00:33]} 28. Ra7 {[%clk 0:01:13]}  Ke5 {[%clk 0:00:30]} 29. f3 {[%clk 0:01:06]}  Kd4 {[%clk 0:00:30]} 30. Ra3 {[%clk 0:01:00]}  h4 {[%clk 0:00:18]} 31. Kf2 {[%clk 0:00:59]}  hxg3+ {[%clk 0:00:18]} 32. hxg3 {[%clk 0:01:00]}  h5 {[%clk 0:00:15]} 33. Rd3+ {[%clk 0:00:58]}  Kc4 {[%clk 0:00:14]} 34. f4 {[%clk 0:00:49]}  Rh8 {[%clk 0:00:11]} 35. Rxd6 {[%clk 0:00:45]}  Kc3 {[%clk 0:00:12]} 36. Rc6 {[%clk 0:00:45]}  c4 {[%clk 0:00:11]} 37. e5 {[%clk 0:00:46]}  Ra8 {[%clk 0:00:04]} 38. e6 {[%clk 0:00:44]}  Rxa2 {[%clk 0:00:02]} 39. e7 {[%clk 0:00:44]}  Ra8 {[%clk 0:00:00]} 40. f5 {[%clk 0:00:44]} 1-0


[Site "https://www.chess.com"]

[Event "Titled Tuesday Blitz July 11 Late 2023"]
[White "Maghsoodloo, Parham"]
[Black "Shuvalova, Polina"]
[WhiteFideId "12539929"]
[BlackFideId "24171760"]
[WhiteElo "2968"]
[BlackElo "2674"]
[Result "1-0"]
[Round "8"]
[TimeControl "180+2"]
[Date "2023.07.11"]
[WhiteClock "0:01:43"]
[BlackClock "0:00:11"]
[Board "16"]

1. e4 {[%clk 0:03:00]}  c6 {[%clk 0:02:59]} 2. d4 {[%clk 0:03:00]}  d5 {[%clk 0:03:00]} 3. f3 {[%clk 0:03:00]}  g6 {[%clk 0:02:55]} 4. Nc3 {[%clk 0:02:59]}  Bg7 {[%clk 0:02:55]} 5. Be3 {[%clk 0:02:59]}  Qb6 {[%clk 0:02:56]} 6. Qd2 {[%clk 0:02:54]}  Qxb2 {[%clk 0:02:41]} 7. Rb1 {[%clk 0:02:53]}  Qa3 {[%clk 0:02:41]} 8. exd5 {[%clk 0:02:54]}  Nf6 {[%clk 0:02:36]} 9. dxc6 {[%clk 0:02:44]}  bxc6 {[%clk 0:02:29]} 10. Bc4 {[%clk 0:02:39]}  O-O {[%clk 0:02:27]} 11. Nge2 {[%clk 0:02:39]}  Nbd7 {[%clk 0:02:21]} 12. Rb3 {[%clk 0:02:31]}  Qa5 {[%clk 0:02:16]} 13. Ne4 {[%clk 0:02:25]}  Qxd2+ {[%clk 0:02:14]} 14. Bxd2 {[%clk 0:02:19]}  Nb6 {[%clk 0:02:14]} 15. Bd3 {[%clk 0:02:19]}  Be6 {[%clk 0:02:13]} 16. Rc3 {[%clk 0:02:19]}  Bxa2 {[%clk 0:02:07]} 17. Rxc6 {[%clk 0:02:19]}  Bd5 {[%clk 0:02:03]} 18. Rc5 {[%clk 0:02:17]}  Rfc8 {[%clk 0:01:55]} 19. Bb4 {[%clk 0:02:16]}  Nfd7 {[%clk 0:01:38]} 20. Rxc8+ {[%clk 0:02:15]}  Rxc8 {[%clk 0:01:39]} 21. Bxe7 {[%clk 0:02:14]}  Re8 {[%clk 0:01:17]} 22. Bb4 {[%clk 0:02:10]}  f5 {[%clk 0:01:17]} 23. Nd6 {[%clk 0:02:10]}  Re6 {[%clk 0:01:14]} 24. Nb5 {[%clk 0:02:04]}  Bc4 {[%clk 0:01:04]} 25. Kd2 {[%clk 0:02:02]}  a6 {[%clk 0:00:55]} 26. Nbc3 {[%clk 0:01:52]}  Bh6+ {[%clk 0:00:29]} 27. f4 {[%clk 0:01:52]}  Nf6 {[%clk 0:00:29]} 28. Rb1 {[%clk 0:01:50]}  Bxd3 {[%clk 0:00:29]} 29. Kxd3 {[%clk 0:01:50]}  Nbd5 {[%clk 0:00:29]} 30. Nxd5 {[%clk 0:01:50]}  Nxd5 {[%clk 0:00:30]} 31. Bd2 {[%clk 0:01:50]}  Bg7 {[%clk 0:00:22]} 32. c4 {[%clk 0:01:50]}  Ne7 {[%clk 0:00:22]} 33. d5 {[%clk 0:01:51]}  Re4 {[%clk 0:00:22]} 34. Rb8+ {[%clk 0:01:45]}  Kf7 {[%clk 0:00:22]} 35. Rb7 {[%clk 0:01:45]}  Kf8 {[%clk 0:00:16]} 36. Be3 {[%clk 0:01:43]}  Bf6 {[%clk 0:00:11]} 37. Ng3 {[%clk 0:01:43]} 1-0


[Site "https://www.chess.com"]

[Event "Titled Tuesday Blitz July 11 Late 2023"]
[White "Sviridov, Valery"]
[Black "Omelja, Artem"]
[WhiteFideId "4120680"]
[BlackFideId "14119846"]
[WhiteElo "2960"]
[BlackElo "2657"]
[Result "1-0"]
[Round "8"]
[TimeControl "180+2"]
[Date "2023.07.11"]
[WhiteClock "0:01:56"]
[BlackClock "0:00:00"]
[Board "17"]

1. d4 {[%clk 0:02:59]}  d5 {[%clk 0:02:57]} 2. Nc3 {[%clk 0:02:59]}  Nf6 {[%clk 0:02:54]} 3. Bf4 {[%clk 0:03:00]}  a6 {[%clk 0:02:54]} 4. e3 {[%clk 0:02:56]}  Bf5 {[%clk 0:02:49]} 5. Nf3 {[%clk 0:02:56]}  e6 {[%clk 0:02:49]} 6. Ne5 {[%clk 0:02:57]}  h6 {[%clk 0:02:42]} 7. Bd3 {[%clk 0:02:54]}  Bxd3 {[%clk 0:02:40]} 8. cxd3 {[%clk 0:02:55]}  Nbd7 {[%clk 0:02:37]} 9. Qb3 {[%clk 0:02:51]}  Nb6 {[%clk 0:01:52]} 10. h3 {[%clk 0:02:40]}  Bd6 {[%clk 0:01:48]} 11. Rc1 {[%clk 0:02:38]}  O-O {[%clk 0:01:47]} 12. O-O {[%clk 0:02:38]}  Rb8 {[%clk 0:01:21]} 13. e4 {[%clk 0:02:33]}  dxe4 {[%clk 0:00:37]} 14. dxe4 {[%clk 0:02:33]}  Bxe5 {[%clk 0:00:33]} 15. Bxe5 {[%clk 0:02:31]}  Nbd7 {[%clk 0:00:33]} 16. Bg3 {[%clk 0:02:25]}  Ne8 {[%clk 0:00:25]} 17. Rfd1 {[%clk 0:02:24]}  Nd6 {[%clk 0:00:24]} 18. Qa3 {[%clk 0:02:20]}  Nc4 {[%clk 0:00:16]} 19. Qb4 {[%clk 0:02:20]}  b5 {[%clk 0:00:15]} 20. Ne2 {[%clk 0:02:08]}  Nf6 {[%clk 0:00:10]} 21. b3 {[%clk 0:02:07]}  a5 {[%clk 0:00:07]} 22. Qe1 {[%clk 0:02:07]}  Nb6 {[%clk 0:00:04]} 23. Bxc7 {[%clk 0:02:06]}  Qd7 {[%clk 0:00:04]} 24. Bxb8 {[%clk 0:02:06]}  Rxb8 {[%clk 0:00:04]} 25. Ng3 {[%clk 0:02:03]}  a4 {[%clk 0:00:02]} 26. Qb4 {[%clk 0:02:03]}  axb3 {[%clk 0:00:02]} 27. axb3 {[%clk 0:02:04]}  Nc8 {[%clk 0:00:02]} 28. Rc5 {[%clk 0:02:01]}  Na7 {[%clk 0:00:01]} 29. Rdc1 {[%clk 0:02:00]}  Qd6 {[%clk 0:00:01]} 30. Rc8+ {[%clk 0:01:57]}  Nxc8 {[%clk 0:00:00]} 31. Rxc8+ {[%clk 0:01:56]} 1-0


[Site "https://www.chess.com"]

[Event "Titled Tuesday Blitz July 11 Late 2023"]
[White "benny_aizenberg"]
[Black "Makarian, Rudik"]
[BlackFideId "44105681"]
[WhiteElo "2654"]
[BlackElo "2946"]
[Result "0-1"]
[Round "8"]
[TimeControl "180+2"]
[Date "2023.07.11"]
[WhiteClock "0:00:00"]
[BlackClock "0:01:02"]
[Board "18"]

1. f4 {[%clk 0:02:58]}  d5 {[%clk 0:02:59]} 2. Nf3 {[%clk 0:02:58]}  Bg4 {[%clk 0:02:56]} 3. d3 {[%clk 0:02:52]}  Bxf3 {[%clk 0:02:56]} 4. gxf3 {[%clk 0:02:46]}  d4 {[%clk 0:02:52]} 5. c3 {[%clk 0:02:44]}  c5 {[%clk 0:02:52]} 6. Nd2 {[%clk 0:02:44]}  Nc6 {[%clk 0:02:52]} 7. Ne4 {[%clk 0:02:44]}  e6 {[%clk 0:02:50]} 8. h4 {[%clk 0:02:41]}  Nf6 {[%clk 0:02:48]} 9. Qb3 {[%clk 0:02:26]}  Qd7 {[%clk 0:02:37]} 10. Nxf6+ {[%clk 0:02:20]}  gxf6 {[%clk 0:02:38]} 11. Bd2 {[%clk 0:02:20]}  f5 {[%clk 0:02:35]} 12. O-O-O {[%clk 0:02:19]}  Bg7 {[%clk 0:02:33]} 13. c4 {[%clk 0:02:14]}  Bf6 {[%clk 0:02:33]} 14. h5 {[%clk 0:02:14]}  Ke7 {[%clk 0:02:32]} 15. Bh3 {[%clk 0:02:04]}  b6 {[%clk 0:02:28]} 16. Rdg1 {[%clk 0:01:51]}  Rhg8 {[%clk 0:02:27]} 17. Qd1 {[%clk 0:01:48]}  a6 {[%clk 0:02:25]} 18. Rxg8 {[%clk 0:01:43]}  Rxg8 {[%clk 0:02:26]} 19. Rg1 {[%clk 0:01:43]}  Rb8 {[%clk 0:02:23]} 20. Qc2 {[%clk 0:01:37]}  Qd6 {[%clk 0:02:20]} 21. Kb1 {[%clk 0:01:32]}  Kd7 {[%clk 0:02:00]} 22. Qa4 {[%clk 0:01:26]}  Ra8 {[%clk 0:01:57]} 23. a3 {[%clk 0:01:22]}  Kc7 {[%clk 0:01:54]} 24. b4 {[%clk 0:01:17]}  Kb7 {[%clk 0:01:42]} 25. bxc5 {[%clk 0:01:00]}  Qxc5 {[%clk 0:01:42]} 26. Ka2 {[%clk 0:01:01]}  Ka7 {[%clk 0:01:36]} 27. Qb3 {[%clk 0:00:39]}  Qd6 {[%clk 0:01:34]} 28. Rb1 {[%clk 0:00:36]}  Rb8 {[%clk 0:01:34]} 29. a4 {[%clk 0:00:34]}  Be7 {[%clk 0:01:32]} 30. e4 {[%clk 0:00:26]}  dxe3 {[%clk 0:01:27]} 31. Bxe3 {[%clk 0:00:22]}  Nb4+ {[%clk 0:01:27]} 32. Kb2 {[%clk 0:00:11]}  Bf6+ {[%clk 0:01:24]} 33. Kc1 {[%clk 0:00:06]}  a5 {[%clk 0:01:24]} 34. Bf1 {[%clk 0:00:05]}  Bd4 {[%clk 0:01:22]} 35. Bd2 {[%clk 0:00:03]}  Bc5 {[%clk 0:01:20]} 36. Bxb4 {[%clk 0:00:01]}  Bxb4 {[%clk 0:01:15]} 37. Kc2 {[%clk 0:00:02]}  Qxf4 {[%clk 0:01:14]} 38. Qb2 {[%clk 0:00:00]}  Qxf3 {[%clk 0:01:02]} 0-1


[Site "https://www.chess.com"]